Workbook

Sheet MATCH
A1: TOURNOI INTERNATIONAL DE FRANCE - SOUVENIR DENIS RANDON 2015
E2: 13ème Edition Clermont l'Hérault Samedi 24 octobre
A4: SEXE | B4: Tir | C4: REG. | D4: Place | E4: NOMS | F4: Prénoms | G4: Nationalité | H4: AN | I4: POIDS | J4: 1 | K4: 2 | L4: 3 | M4: ARR | N4: 1 | O4: 2 | P4: 3 | Q4: EP-J | R4: Total | S4: IWF | T4: Class | V4: Catég | W4: Points | X4: DEP + | Y4: REG + | Z4: IRG + | AA4: FED + | AB4: NAT + | AC4: INTB + | AD4: INTA + | AE4: OLY + | AF4: NCL
E5: HOMMES
A6: H | E6: AUCOUTURIER | F6: Yann | G6: France | H6: 86 | I6: 70.65 | J6: 125 | K6: 129 | L6: 132 | M6: =IF(I6="","",IF(MAXA(J6:L6)<=0,0,MAXA(J6:L6))) -> 132 | N6: 159 | O6: 165 | P6: 167 | Q6: =IF(I6="","",IF(MAXA(N6:P6)<=0,0,MAXA(N6:P6))) -> 167 | R6: =IF(I6="","",IF(OR(M6=0,Q6=0),0,M6+Q6)) -> 299 | S6: =IF(I6="","",IF(A6="H",10^(0.794358141*LOG(I6/174.393)^2)*R6,IF(A6="F",10^(0.89726074*LOG(I6/148.026)^2)*R6,""))) -> 396.2736549 | T6: =RANK(S6,S6:S17) -> 3 | V6: =IF(I6="","",IF(A6="H",IF(OR(H6="SEN",H6<94),VLOOKUP(I6,Feuil1!$A$10:$E$28,5),IF(AND(H6>93,H6<97),VLOOKUP(I6,Feuil1!$A$10:$E$28,4),IF(AND(H6>93,H6<96),VLOOKUP(I6,Feuil1!$A$10:$E$28,3),IF(AND(H6>95,H6<2000),VLOOKUP(I6,Feuil1!$A$10:$E$28,3),VLOOKUP(I6,Feuil1!$A$10:$E$28,2))))),IF(OR(H6="SEN",H6<94),VLOOKUP(I6,Feuil1!$F$10:$J$24,5),IF(AND(H6>93,H6<97),VLOOKUP(I6,Feuil1!$F$10:$J$24,4),IF(AND(H6>93,H6<96),VLOOKUP(I6,Feuil1!$F$10:$J$24,4),IF(AND(H6>93,H6<2000),VLOOKUP(I6,Feuil1!$F$10:$J$24,3),VLOOKUP(I6,Feuil1!$F$10:$J$24,2))))))) -> S77 | X6: =R6-HLOOKUP(#REF!,Feuil1!$C$1:$AU$9,2,FALSE) ->  | Y6: =R6-HLOOKUP(#REF!,Feuil1!$C$1:$AU$9,3,FALSE) ->  | Z6: =R6-HLOOKUP(#REF!,Feuil1!$C$1:$AU$9,4,FALSE) ->  | AA6: =R6-HLOOKUP(#REF!,Feuil1!$C$1:$AU$9,5,FALSE) ->  | AB6: =R6-HLOOKUP(#REF!,Feuil1!$C$1:$AU$9,6,FALSE) ->  | AC6: =R6-HLOOKUP(#REF!,Feuil1!$C$1:$AU$9,7,FALSE) ->  | AD6: =R6-HLOOKUP(#REF!,Feuil1!$C$1:$AU$9,8,FALSE) ->  | AE6: =R6-HLOOKUP(#REF!,Feuil1!$C$1:$AU$9,9,FALSE) ->  | AM6: =IF(AE6>=0,$AE$4,IF(AD6>=0,$AD$4,IF(AC6>=0,$AC$4,IF(AB6>=0,$AB$4,IF(AA6>=0,$AA$4,IF(Z6>=0,$Z$4,IF(Y6>=0,$Y$4,IF(X6>=0,$X$4,$AF$4)))))))) -> 
A7: H | E7: BOULY | F7: Kévin | G7: France | H7: 81 | I7: 107.75 | J7: -155 | K7: -155 | L7: -155 | M7: =IF(I7="","",IF(MAXA(J7:L7)<=0,0,MAXA(J7:L7))) -> 0 | N7: 190 | O7: -200 | P7: 200 | Q7: =IF(I7="","",IF(MAXA(N7:P7)<=0,0,MAXA(N7:P7))) -> 200 | R7: =IF(I7="","",IF(OR(M7=0,Q7=0),0,M7+Q7)) -> 0 | S7: =IF(I7="","",IF(A7="H",10^(0.794358141*LOG(I7/174.393)^2)*R7,IF(A7="F",10^(0.89726074*LOG(I7/148.026)^2)*R7,""))) -> 0 | T7: =RANK(S7,S6:S17) -> 10 | V7: =IF(I7="","",IF(A7="H",IF(OR(H7="SEN",H7<94),VLOOKUP(I7,Feuil1!$A$10:$E$28,5),IF(AND(H7>93,H7<97),VLOOKUP(I7,Feuil1!$A$10:$E$28,4),IF(AND(H7>93,H7<96),VLOOKUP(I7,Feuil1!$A$10:$E$28,3),IF(AND(H7>95,H7<2000),VLOOKUP(I7,Feuil1!$A$10:$E$28,3),VLOOKUP(I7,Feuil1!$A$10:$E$28,2))))),IF(OR(H7="SEN",H7<94),VLOOKUP(I7,Feuil1!$F$10:$J$24,5),IF(AND(H7>93,H7<97),VLOOKUP(I7,Feuil1!$F$10:$J$24,4),IF(AND(H7>93,H7<96),VLOOKUP(I7,Feuil1!$F$10:$J$24,4),IF(AND(H7>93,H7<2000),VLOOKUP(I7,Feuil1!$F$10:$J$24,3),VLOOKUP(I7,Feuil1!$F$10:$J$24,2))))))) -> S+105 | X7: =R7-HLOOKUP(#REF!,Feuil1!$C$1:$AU$9,2,FALSE) ->  | Y7: =R7-HLOOKUP(#REF!,Feuil1!$C$1:$AU$9,3,FALSE) ->  | Z7: =R7-HLOOKUP(#REF!,Feuil1!$C$1:$AU$9,4,FALSE) ->  | AA7: =R7-HLOOKUP(#REF!,Feuil1!$C$1:$AU$9,5,FALSE) ->  | AB7: =R7-HLOOKUP(#REF!,Feuil1!$C$1:$AU$9,6,FALSE) ->  | AC7: =R7-HLOOKUP(#REF!,Feuil1!$C$1:$AU$9,7,FALSE) ->  | AD7: =R7-HLOOKUP(#REF!,Feuil1!$C$1:$AU$9,8,FALSE) ->  | AE7: =R7-HLOOKUP(#REF!,Feuil1!$C$1:$AU$9,9,FALSE) ->  | AM7: =IF(AE7>=0,$AE$4,IF(AD7>=0,$AD$4,IF(AC7>=0,$AC$4,IF(AB7>=0,$AB$4,IF(AA7>=0,$AA$4,IF(Z7>=0,$Z$4,IF(Y7>=0,$Y$4,IF(X7>=0,$X$4,$AF$4)))))))) -> 
A8: H | E8: BARDIS | F8: Jean Baptiste | G8: France | H8: 87 | I8: 87.45 | J8: 155 | K8: -160 | L8: -161 | M8: =IF(I8="","",IF(MAXA(J8:L8)<=0,0,MAXA(J8:L8))) -> 155 | N8: 185 | O8: 190 | P8: -196 | Q8: =IF(I8="","",IF(MAXA(N8:P8)<=0,0,MAXA(N8:P8))) -> 190 | R8: =IF(I8="","",IF(OR(M8=0,Q8=0),0,M8+Q8)) -> 345 | S8: =IF(I8="","",IF(A8="H",10^(0.794358141*LOG(I8/174.393)^2)*R8,IF(A8="F",10^(0.89726074*LOG(I8/148.026)^2)*R8,""))) -> 406.6318422 | T8: =RANK(S8,S6:S17) -> 2 | U8: =IF(I8="","",IF(AE8>=0,AE8,IF(AD8>=0,AD8,IF(AC8>=0,AC8,IF(AB8>=0,AB8,IF(AA8>=0,AA8,IF(Z8>=0,Z8,IF(Y8>=0,Y8,X8)))))))) -> 5 | V8: =IF(I8="","",IF(A8="H",IF(OR(H8="SEN",H8<94),VLOOKUP(I8,Feuil1!$A$10:$E$28,5),IF(AND(H8>93,H8<97),VLOOKUP(I8,Feuil1!$A$10:$E$28,4),IF(AND(H8>93,H8<96),VLOOKUP(I8,Feuil1!$A$10:$E$28,3),IF(AND(H8>95,H8<2000),VLOOKUP(I8,Feuil1!$A$10:$E$28,3),VLOOKUP(I8,Feuil1!$A$10:$E$28,2))))),IF(OR(H8="SEN",H8<94),VLOOKUP(I8,Feuil1!$F$10:$J$24,5),IF(AND(H8>93,H8<97),VLOOKUP(I8,Feuil1!$F$10:$J$24,4),IF(AND(H8>93,H8<96),VLOOKUP(I8,Feuil1!$F$10:$J$24,4),IF(AND(H8>93,H8<2000),VLOOKUP(I8,Feuil1!$F$10:$J$24,3),VLOOKUP(I8,Feuil1!$F$10:$J$24,2))))))) -> S94 | W8: =SUM(R8-(I8*2)) -> 170.1 | X8: =R8-HLOOKUP(V8,Feuil1!$C$1:$AU$9,2,FALSE) -> 160 | Y8: =R8-HLOOKUP(V8,Feuil1!$C$1:$AU$9,3,FALSE) -> 140 | Z8: =R8-HLOOKUP(V8,Feuil1!$C$1:$AU$9,4,FALSE) -> 115 | AA8: =R8-HLOOKUP(V8,Feuil1!$C$1:$AU$9,5,FALSE) -> 85 | AB8: =R8-HLOOKUP(V8,Feuil1!$C$1:$AU$9,6,FALSE) -> 55 | AC8: =R8-HLOOKUP(V8,Feuil1!$C$1:$AU$9,7,FALSE) -> 25 | AD8: =R8-HLOOKUP(V8,Feuil1!$C$1:$AU$9,8,FALSE) -> 5 | AE8: =R8-HLOOKUP(V8,Feuil1!$C$1:$AU$9,9,FALSE) -> -10 | AM8: =IF(AE8>=0,$AE$4,IF(AD8>=0,$AD$4,IF(AC8>=0,$AC$4,IF(AB8>=0,$AB$4,IF(AA8>=0,$AA$4,IF(Z8>=0,$Z$4,IF(Y8>=0,$Y$4,IF(X8>=0,$X$4,$AF$4)))))))) -> INTA +
A9: H | E9: KINGUE MATAM | F9: Bernardin | G9: France | H9: 90 | I9: 71.85 | J9: -143 | K9: 143 | L9: -150 | M9: 143 | N9: 175 | O9: 180 | P9: -185 | Q9: 180 | R9: 323 | S9: 423.6515737 | T9: =RANK(S9,S6:S17) -> 1 | U9: 13 | V9: =IF(I9="","",IF(A9="H",IF(OR(H9="SEN",H9<94),VLOOKUP(I9,Feuil1!$A$10:$E$28,5),IF(AND(H9>93,H9<97),VLOOKUP(I9,Feuil1!$A$10:$E$28,4),IF(AND(H9>93,H9<96),VLOOKUP(I9,Feuil1!$A$10:$E$28,3),IF(AND(H9>95,H9<2000),VLOOKUP(I9,Feuil1!$A$10:$E$28,3),VLOOKUP(I9,Feuil1!$A$10:$E$28,2))))),IF(OR(H9="SEN",H9<94),VLOOKUP(I9,Feuil1!$F$10:$J$24,5),IF(AND(H9>93,H9<97),VLOOKUP(I9,Feuil1!$F$10:$J$24,4),IF(AND(H9>93,H9<96),VLOOKUP(I9,Feuil1!$F$10:$J$24,4),IF(AND(H9>93,H9<2000),VLOOKUP(I9,Feuil1!$F$10:$J$24,3),VLOOKUP(I9,Feuil1!$F$10:$J$24,2))))))) -> S77 | W9: =SUM(R9-(I9*2)) -> 179.3 | X9: =R9-HLOOKUP(V9,Feuil1!$C$1:$AU$9,2,FALSE) -> 163 | Y9: =R9-HLOOKUP(V9,Feuil1!$C$1:$AU$9,3,FALSE) -> 143 | Z9: =R9-HLOOKUP(V9,Feuil1!$C$1:$AU$9,4,FALSE) -> 118 | AA9: =R9-HLOOKUP(V9,Feuil1!$C$1:$AU$9,5,FALSE) -> 88 | AB9: =R9-HLOOKUP(V9,Feuil1!$C$1:$AU$9,6,FALSE) -> 58 | AC9: =R9-HLOOKUP(V9,Feuil1!$C$1:$AU$9,7,FALSE) -> 33 | AD9: =R9-HLOOKUP(V9,Feuil1!$C$1:$AU$9,8,FALSE) -> 13 | AE9: =R9-HLOOKUP(V9,Feuil1!$C$1:$AU$9,9,FALSE) -> -2 | AM9: INTA +
A10: H | E10: SUIUGAN DARIUS | F10: Stéphan | G10: Roumanie | H10: 93 | I10: 69.7 | J10: -115 | K10: 120 | L10: -126 | M10: 120 | N10: -145 | O10: 145 | P10: 150 | Q10: 150 | R10: 270 | S10: 360.8948423 | T10: =RANK(S10,S6:S17) -> 8 | U10: 5 | V10: =IF(I10="","",IF(A10="H",IF(OR(H10="SEN",H10<94),VLOOKUP(I10,Feuil1!$A$10:$E$28,5),IF(AND(H10>93,H10<97),VLOOKUP(I10,Feuil1!$A$10:$E$28,4),IF(AND(H10>93,H10<96),VLOOKUP(I10,Feuil1!$A$10:$E$28,3),IF(AND(H10>95,H10<2000),VLOOKUP(I10,Feuil1!$A$10:$E$28,3),VLOOKUP(I10,Feuil1!$A$10:$E$28,2))))),IF(OR(H10="SEN",H10<94),VLOOKUP(I10,Feuil1!$F$10:$J$24,5),IF(AND(H10>93,H10<97),VLOOKUP(I10,Feuil1!$F$10:$J$24,4),IF(AND(H10>93,H10<96),VLOOKUP(I10,Feuil1!$F$10:$J$24,4),IF(AND(H10>93,H10<2000),VLOOKUP(I10,Feuil1!$F$10:$J$24,3),VLOOKUP(I10,Feuil1!$F$10:$J$24,2))))))) -> S77 | W10: =SUM(R10-(I10*2)) -> 130.6 | X10: =R10-HLOOKUP(V10,Feuil1!$C$1:$AU$9,2,FALSE) -> 110 | Y10: =R10-HLOOKUP(V10,Feuil1!$C$1:$AU$9,3,FALSE) -> 90 | Z10: =R10-HLOOKUP(V10,Feuil1!$C$1:$AU$9,4,FALSE) -> 65 | AA10: =R10-HLOOKUP(V10,Feuil1!$C$1:$AU$9,5,FALSE) -> 35 | AB10: =R10-HLOOKUP(V10,Feuil1!$C$1:$AU$9,6,FALSE) -> 5 | AC10: =R10-HLOOKUP(V10,Feuil1!$C$1:$AU$9,7,FALSE) -> -20 | AD10: =R10-HLOOKUP(V10,Feuil1!$C$1:$AU$9,8,FALSE) -> -40 | AE10: =R10-HLOOKUP(V10,Feuil1!$C$1:$AU$9,9,FALSE) -> -55 | AM10: NAT +
A11: H | E11: HENNEQUIN | F11: Benjamin | G11: France | H11: 84 | I11: 87.65 | J11: 155 | K11: -160 | L11: -160 | M11: 155 | N11: -190 | O11: - | P11: - | Q11: 0 | R11: 0 | S11: 0 | T11: =RANK(S11,S6:S17) -> 10 | U11: -185 | V11: =IF(I11="","",IF(A11="H",IF(OR(H11="SEN",H11<94),VLOOKUP(I11,Feuil1!$A$10:$E$28,5),IF(AND(H11>93,H11<97),VLOOKUP(I11,Feuil1!$A$10:$E$28,4),IF(AND(H11>93,H11<96),VLOOKUP(I11,Feuil1!$A$10:$E$28,3),IF(AND(H11>95,H11<2000),VLOOKUP(I11,Feuil1!$A$10:$E$28,3),VLOOKUP(I11,Feuil1!$A$10:$E$28,2))))),IF(OR(H11="SEN",H11<94),VLOOKUP(I11,Feuil1!$F$10:$J$24,5),IF(AND(H11>93,H11<97),VLOOKUP(I11,Feuil1!$F$10:$J$24,4),IF(AND(H11>93,H11<96),VLOOKUP(I11,Feuil1!$F$10:$J$24,4),IF(AND(H11>93,H11<2000),VLOOKUP(I11,Feuil1!$F$10:$J$24,3),VLOOKUP(I11,Feuil1!$F$10:$J$24,2))))))) -> S94 | W11: =SUM(R11-I11) -> -87.65 | X11: =R11-HLOOKUP(V11,Feuil1!$C$1:$AU$9,2,FALSE) -> -185 | Y11: =R11-HLOOKUP(V11,Feuil1!$C$1:$AU$9,3,FALSE) -> -205 | Z11: =R11-HLOOKUP(V11,Feuil1!$C$1:$AU$9,4,FALSE) -> -230 | AA11: =R11-HLOOKUP(V11,Feuil1!$C$1:$AU$9,5,FALSE) -> -260 | AB11: =R11-HLOOKUP(V11,Feuil1!$C$1:$AU$9,6,FALSE) -> -290 | AC11: =R11-HLOOKUP(V11,Feuil1!$C$1:$AU$9,7,FALSE) -> -320 | AD11: =R11-HLOOKUP(V11,Feuil1!$C$1:$AU$9,8,FALSE) -> -340 | AE11: =R11-HLOOKUP(V11,Feuil1!$C$1:$AU$9,9,FALSE) -> -355 | AM11: NCL
A12: H | E12: GHAZARIAN | F12: Norik | G12: Arménie | H12: 95 | I12: 78.45 | J12: 130 | K12: 135 | L12: 137 | M12: 137 | N12: 165 | O12: -170 | P12: -170 | Q12: =IF(I12="","",IF(MAXA(N12:P12)<=0,0,MAXA(N12:P12))) -> 165 | R12: =IF(I12="","",IF(OR(M12=0,Q12=0),0,M12+Q12)) -> 302 | S12: 376.3739777 | T12: =RANK(S12,S6:S17) -> 6 | U12: 2 | V12: =IF(I12="","",IF(A12="H",IF(OR(H12="SEN",H12<94),VLOOKUP(I12,Feuil1!$A$10:$E$28,5),IF(AND(H12>93,H12<97),VLOOKUP(I12,Feuil1!$A$10:$E$28,4),IF(AND(H12>93,H12<96),VLOOKUP(I12,Feuil1!$A$10:$E$28,3),IF(AND(H12>95,H12<2000),VLOOKUP(I12,Feuil1!$A$10:$E$28,3),VLOOKUP(I12,Feuil1!$A$10:$E$28,2))))),IF(OR(H12="SEN",H12<94),VLOOKUP(I12,Feuil1!$F$10:$J$24,5),IF(AND(H12>93,H12<97),VLOOKUP(I12,Feuil1!$F$10:$J$24,4),IF(AND(H12>93,H12<96),VLOOKUP(I12,Feuil1!$F$10:$J$24,4),IF(AND(H12>93,H12<2000),VLOOKUP(I12,Feuil1!$F$10:$J$24,3),VLOOKUP(I12,Feuil1!$F$10:$J$24,2))))))) -> J85 | W12: 223.55 | X12: =R12-HLOOKUP(V12,Feuil1!$C$1:$AU$9,2,FALSE) -> 147 | Y12: =R12-HLOOKUP(V12,Feuil1!$C$1:$AU$9,3,FALSE) -> 127 | Z12: =R12-HLOOKUP(V12,Feuil1!$C$1:$AU$9,4,FALSE) -> 107 | AA12: =R12-HLOOKUP(V12,Feuil1!$C$1:$AU$9,5,FALSE) -> 82 | AB12: =R12-HLOOKUP(V12,Feuil1!$C$1:$AU$9,6,FALSE) -> 52 | AC12: =R12-HLOOKUP(V12,Feuil1!$C$1:$AU$9,7,FALSE) -> 22 | AD12: =R12-HLOOKUP(V12,Feuil1!$C$1:$AU$9,8,FALSE) -> 2 | AE12: =R12-HLOOKUP(V12,Feuil1!$C$1:$AU$9,9,FALSE) -> -698 | AM12: INTA +
A13: H | E13: RUIZ VELASCO | F13: Marcos | G13: Espagne | H13: 96 | I13: 102.5 | J13: -151 | K13: 151 | L13: -155 | M13: 151 | N13: 170 | O13: -175 | P13: - | Q13: 170 | R13: 321 | S13: 353.8517199 | T13: =RANK(S13,S6:S17) -> 9 | U13: 1 | V13: =IF(I13="","",IF(A13="H",IF(OR(H13="SEN",H13<94),VLOOKUP(I13,Feuil1!$A$10:$E$28,5),IF(AND(H13>93,H13<97),VLOOKUP(I13,Feuil1!$A$10:$E$28,4),IF(AND(H13>93,H13<96),VLOOKUP(I13,Feuil1!$A$10:$E$28,3),IF(AND(H13>95,H13<2000),VLOOKUP(I13,Feuil1!$A$10:$E$28,3),VLOOKUP(I13,Feuil1!$A$10:$E$28,2))))),IF(OR(H13="SEN",H13<94),VLOOKUP(I13,Feuil1!$F$10:$J$24,5),IF(AND(H13>93,H13<97),VLOOKUP(I13,Feuil1!$F$10:$J$24,4),IF(AND(H13>93,H13<96),VLOOKUP(I13,Feuil1!$F$10:$J$24,4),IF(AND(H13>93,H13<2000),VLOOKUP(I13,Feuil1!$F$10:$J$24,3),VLOOKUP(I13,Feuil1!$F$10:$J$24,2))))))) -> J105 | W13: 218.5 | X13: =R13-HLOOKUP(V13,Feuil1!$C$1:$AU$9,2,FALSE) -> 146 | Y13: =R13-HLOOKUP(V13,Feuil1!$C$1:$AU$9,3,FALSE) -> 126 | Z13: =R13-HLOOKUP(V13,Feuil1!$C$1:$AU$9,4,FALSE) -> 106 | AA13: =R13-HLOOKUP(V13,Feuil1!$C$1:$AU$9,5,FALSE) -> 81 | AB13: =R13-HLOOKUP(V13,Feuil1!$C$1:$AU$9,6,FALSE) -> 51 | AC13: =R13-HLOOKUP(V13,Feuil1!$C$1:$AU$9,7,FALSE) -> 16 | AD13: =R13-HLOOKUP(V13,Feuil1!$C$1:$AU$9,8,FALSE) -> 1 | AE13: =R13-HLOOKUP(V13,Feuil1!$C$1:$AU$9,9,FALSE) -> -679 | AM13: INTA +
A14: H | E14: MANUSHI | F14: Redon | G14: France | H14: 90 | I14: 97.6 | J14: 160 | K14: 165 | L14: - | M14: 165 | N14: 174 | O14: - | P14: - | Q14: 174 | R14: 339 | S14: 380.7819409 | T14: =RANK(S14,S6:S17) -> 5 | U14: 9 | V14: =IF(I14="","",IF(A14="H",IF(OR(H14="SEN",H14<94),VLOOKUP(I14,Feuil1!$A$10:$E$28,5),IF(AND(H14>93,H14<97),VLOOKUP(I14,Feuil1!$A$10:$E$28,4),IF(AND(H14>93,H14<96),VLOOKUP(I14,Feuil1!$A$10:$E$28,3),IF(AND(H14>95,H14<2000),VLOOKUP(I14,Feuil1!$A$10:$E$28,3),VLOOKUP(I14,Feuil1!$A$10:$E$28,2))))),IF(OR(H14="SEN",H14<94),VLOOKUP(I14,Feuil1!$F$10:$J$24,5),IF(AND(H14>93,H14<97),VLOOKUP(I14,Feuil1!$F$10:$J$24,4),IF(AND(H14>93,H14<96),VLOOKUP(I14,Feuil1!$F$10:$J$24,4),IF(AND(H14>93,H14<2000),VLOOKUP(I14,Feuil1!$F$10:$J$24,3),VLOOKUP(I14,Feuil1!$F$10:$J$24,2))))))) -> S105 | W14: 241.4 | X14: =R14-HLOOKUP(V14,Feuil1!$C$1:$AU$9,2,FALSE) -> 144 | Y14: =R14-HLOOKUP(V14,Feuil1!$C$1:$AU$9,3,FALSE) -> 124 | Z14: =R14-HLOOKUP(V14,Feuil1!$C$1:$AU$9,4,FALSE) -> 99 | AA14: =R14-HLOOKUP(V14,Feuil1!$C$1:$AU$9,5,FALSE) -> 69 | AB14: =R14-HLOOKUP(V14,Feuil1!$C$1:$AU$9,6,FALSE) -> 39 | AC14: =R14-HLOOKUP(V14,Feuil1!$C$1:$AU$9,7,FALSE) -> 9 | AD14: =R14-HLOOKUP(V14,Feuil1!$C$1:$AU$9,8,FALSE) -> -11 | AE14: =R14-HLOOKUP(V14,Feuil1!$C$1:$AU$9,9,FALSE) -> -26 | AM14: INTB +
A15: H | E15: BEJENARIU | F15: Florin | G15: Roumanie | H15: 94 | I15: 79.95 | J15: -130 | K15: 130 | L15: 135 | M15: 135 | N15: 155 | O15: -165 | P15: 165 | Q15: 165 | R15: 300 | S15: 370.0444366 | T15: =RANK(S15,S6:S17) -> 7 | U15: 0 | V15: =IF(I15="","",IF(A15="H",IF(OR(H15="SEN",H15<94),VLOOKUP(I15,Feuil1!$A$10:$E$28,5),IF(AND(H15>93,H15<97),VLOOKUP(I15,Feuil1!$A$10:$E$28,4),IF(AND(H15>93,H15<96),VLOOKUP(I15,Feuil1!$A$10:$E$28,3),IF(AND(H15>95,H15<2000),VLOOKUP(I15,Feuil1!$A$10:$E$28,3),VLOOKUP(I15,Feuil1!$A$10:$E$28,2))))),IF(OR(H15="SEN",H15<94),VLOOKUP(I15,Feuil1!$F$10:$J$24,5),IF(AND(H15>93,H15<97),VLOOKUP(I15,Feuil1!$F$10:$J$24,4),IF(AND(H15>93,H15<96),VLOOKUP(I15,Feuil1!$F$10:$J$24,4),IF(AND(H15>93,H15<2000),VLOOKUP(I15,Feuil1!$F$10:$J$24,3),VLOOKUP(I15,Feuil1!$F$10:$J$24,2))))))) -> J85 | W15: 220.05 | X15: =R15-HLOOKUP(V15,Feuil1!$C$1:$AU$9,2,FALSE) -> 145 | Y15: =R15-HLOOKUP(V15,Feuil1!$C$1:$AU$9,3,FALSE) -> 125 | Z15: =R15-HLOOKUP(V15,Feuil1!$C$1:$AU$9,4,FALSE) -> 105 | AA15: =R15-HLOOKUP(V15,Feuil1!$C$1:$AU$9,5,FALSE) -> 80 | AB15: =R15-HLOOKUP(V15,Feuil1!$C$1:$AU$9,6,FALSE) -> 50 | AC15: =R15-HLOOKUP(V15,Feuil1!$C$1:$AU$9,7,FALSE) -> 20 | AD15: =R15-HLOOKUP(V15,Feuil1!$C$1:$AU$9,8,FALSE) -> 0 | AE15: =R15-HLOOKUP(V15,Feuil1!$C$1:$AU$9,9,FALSE) -> -700 | AM15: INTA +
A16: H | E16: MATAM MATAM | F16: David | G16: France | H16: 75 | I16: 94.65 | J16: 150 | K16: 155 | L16: -160 | M16: =IF(I16="","",IF(MAXA(J16:L16)<=0,0,MAXA(J16:L16))) -> 155 | N16: 184 | O16: -190 | P16: 190 | Q16: 190 | R16: 345 | S16: =IF(I16="","",IF(A16="H",10^(0.794358141*LOG(I16/174.393)^2)*R16,IF(A16="F",10^(0.89726074*LOG(I16/148.026)^2)*R16,""))) -> 392.441549 | T16: =RANK(S16,S6:S17) -> 4 | U16: =IF(I16="","",IF(AE16>=0,AE16,IF(AD16>=0,AD16,IF(AC16>=0,AC16,IF(AB16>=0,AB16,IF(AA16>=0,AA16,IF(Z16>=0,Z16,IF(Y16>=0,Y16,X16)))))))) -> 15 | V16: =IF(I16="","",IF(A16="H",IF(OR(H16="SEN",H16<94),VLOOKUP(I16,Feuil1!$A$10:$E$28,5),IF(AND(H16>93,H16<97),VLOOKUP(I16,Feuil1!$A$10:$E$28,4),IF(AND(H16>93,H16<96),VLOOKUP(I16,Feuil1!$A$10:$E$28,3),IF(AND(H16>95,H16<2000),VLOOKUP(I16,Feuil1!$A$10:$E$28,3),VLOOKUP(I16,Feuil1!$A$10:$E$28,2))))),IF(OR(H16="SEN",H16<94),VLOOKUP(I16,Feuil1!$F$10:$J$24,5),IF(AND(H16>93,H16<97),VLOOKUP(I16,Feuil1!$F$10:$J$24,4),IF(AND(H16>93,H16<96),VLOOKUP(I16,Feuil1!$F$10:$J$24,4),IF(AND(H16>93,H16<2000),VLOOKUP(I16,Feuil1!$F$10:$J$24,3),VLOOKUP(I16,Feuil1!$F$10:$J$24,2))))))) -> S105 | W16: =SUM(R16-I16) -> 250.35 | X16: =R16-HLOOKUP(V16,Feuil1!$C$1:$AU$9,2,FALSE) -> 150 | Y16: =R16-HLOOKUP(V16,Feuil1!$C$1:$AU$9,3,FALSE) -> 130 | Z16: =R16-HLOOKUP(V16,Feuil1!$C$1:$AU$9,4,FALSE) -> 105 | AA16: =R16-HLOOKUP(V16,Feuil1!$C$1:$AU$9,5,FALSE) -> 75 | AB16: =R16-HLOOKUP(V16,Feuil1!$C$1:$AU$9,6,FALSE) -> 45 | AC16: =R16-HLOOKUP(V16,Feuil1!$C$1:$AU$9,7,FALSE) -> 15 | AD16: =R16-HLOOKUP(V16,Feuil1!$C$1:$AU$9,8,FALSE) -> -5 | AE16: =R16-HLOOKUP(V16,Feuil1!$C$1:$AU$9,9,FALSE) -> -20 | AM16: =IF(AE16>=0,$AE$4,IF(AD16>=0,$AD$4,IF(AC16>=0,$AC$4,IF(AB16>=0,$AB$4,IF(AA16>=0,$AA$4,IF(Z16>=0,$Z$4,IF(Y16>=0,$Y$4,IF(X16>=0,$X$4,$AF$4)))))))) -> INTB +
A17: H | E17: COULLET | F17: Anthony | G17: EEAR Monteux | H17: 97 | I17: 135.45 | J17: 142 | K17: -150 | L17: -150 | M17: 142 | N17: - | O17: - | P17: - | Q17: 0 | R17: 0 | S17: 0 | T17: =RANK(S17,S6:S17) -> 10 | U17: -160 | V17: =IF(I17="","",IF(A17="H",IF(OR(H17="SEN",H17<94),VLOOKUP(I17,Feuil1!$A$10:$E$28,5),IF(AND(H17>93,H17<97),VLOOKUP(I17,Feuil1!$A$10:$E$28,4),IF(AND(H17>93,H17<96),VLOOKUP(I17,Feuil1!$A$10:$E$28,3),IF(AND(H17>95,H17<2000),VLOOKUP(I17,Feuil1!$A$10:$E$28,3),VLOOKUP(I17,Feuil1!$A$10:$E$28,2))))),IF(OR(H17="SEN",H17<94),VLOOKUP(I17,Feuil1!$F$10:$J$24,5),IF(AND(H17>93,H17<97),VLOOKUP(I17,Feuil1!$F$10:$J$24,4),IF(AND(H17>93,H17<96),VLOOKUP(I17,Feuil1!$F$10:$J$24,4),IF(AND(H17>93,H17<2000),VLOOKUP(I17,Feuil1!$F$10:$J$24,3),VLOOKUP(I17,Feuil1!$F$10:$J$24,2))))))) -> C+94 | W17: -135.45 | X17: =R17-HLOOKUP(V17,Feuil1!$C$1:$AU$9,2,FALSE) -> -160 | Y17: =R17-HLOOKUP(V17,Feuil1!$C$1:$AU$9,3,FALSE) -> -180 | Z17: =R17-HLOOKUP(V17,Feuil1!$C$1:$AU$9,4,FALSE) -> -205 | AA17: =R17-HLOOKUP(V17,Feuil1!$C$1:$AU$9,5,FALSE) -> -220 | AB17: =R17-HLOOKUP(V17,Feuil1!$C$1:$AU$9,6,FALSE) -> -235 | AC17: =R17-HLOOKUP(V17,Feuil1!$C$1:$AU$9,7,FALSE) -> -250 | AD17: =R17-HLOOKUP(V17,Feuil1!$C$1:$AU$9,8,FALSE) -> -270 | AE17: =R17-HLOOKUP(V17,Feuil1!$C$1:$AU$9,9,FALSE) -> -1000 | AM17: NCL
E19: Secrétaire de Compétition | G19: Arbitre | N19: Arbitre | T19: Arbitre
D20: Nom : | E20: Daniel MENONI | F20: Nom : | G20: Jean Pierre BRUNET | L20: Nom : | M20: Michel VALENTE | R20: Nom : | S20: Jean BOUSQUET
D21: Signature : | F21: Signature : | L21: Signature : | R21: Signature :
W524: J69 | X524: J77 | Y524: J85 | Z524: J94 | AA524: J105 | AB524: J+105 | AD524: J56 | AE524: J62 | AF524: J69 | AG524: J77 | AH524: J85 | AI524: J94 | AJ524: J105 | AK524: J+105 | AM524: S56 | AN524: S62 | AO524: S69 | AP524: S77 | AQ524: S85 | AR524: S94 | AS524: S105 | AT524: S+105
W525: 130 | X525: 145 | Y525: 160 | Z525: 170 | AA525: 180 | AB525: 190 | AD525: 100 | AE525: 115 | AF525: 130 | AG525: 145 | AH525: 160 | AI525: 170 | AJ525: 180 | AK525: 190 | AM525: 115 | AN525: 135 | AO525: 150 | AP525: 165 | AQ525: 180 | AR525: 190 | AS525: 200 | AT525: 210
W526: 150 | X526: 165 | Y526: 180 | Z526: 190 | AA526: 200 | AB526: 210 | AD526: 115 | AE526: 135 | AF526: 150 | AG526: 165 | AH526: 180 | AI526: 190 | AJ526: 200 | AK526: 210 | AM526: 130 | AN526: 150 | AO526: 165 | AP526: 185 | AQ526: 200 | AR526: 210 | AS526: 220 | AT526: 230
W527: 165 | X527: 185 | Y527: 200 | Z527: 210 | AA527: 220 | AB527: 230 | AD527: 130 | AE527: 150 | AF527: 165 | AG527: 185 | AH527: 200 | AI527: 210 | AJ527: 220 | AK527: 230 | AM527: 145 | AN527: 165 | AO527: 180 | AP527: 200 | AQ527: 220 | AR527: 230 | AS527: 240 | AT527: 250
W528: 180 | X528: 200 | Y528: 220 | Z528: 230 | AA528: 240 | AB528: 250 | AD528: 145 | AE528: 165 | AF528: 180 | AG528: 200 | AH528: 220 | AI528: 230 | AJ528: 240 | AK528: 250 | AM528: 175 | AN528: 195 | AO528: 215 | AP528: 235 | AQ528: 250 | AR528: 260 | AS528: 275 | AT528: 280
W529: 215 | X529: 235 | Y529: 250 | Z529: 260 | AA529: 275 | AB529: 280 | AD529: 175 | AE529: 195 | AF529: 215 | AG529: 235 | AH529: 250 | AI529: 260 | AJ529: 275 | AK529: 280 | AM529: 210 | AN529: 230 | AO529: 250 | AP529: 270 | AQ529: 290 | AR529: 300 | AS529: 310 | AT529: 325
W530: 250 | X530: 270 | Y530: 290 | Z530: 300 | AA530: 310 | AB530: 325 | AD530: 210 | AE530: 230 | AF530: 250 | AG530: 270 | AH530: 290 | AI530: 300 | AJ530: 310 | AK530: 325 | AM530: 230 | AN530: 255 | AO530: 275 | AP530: 300 | AQ530: 315 | AR530: 335 | AS530: 345 | AT530: 355
W531: 295 | X531: 320 | Y531: 335 | Z531: 355 | AA531: 370 | AB531: 380 | AD531: 245 | AE531: 270 | AF531: 295 | AG531: 320 | AH531: 335 | AI531: 355 | AJ531: 370 | AK531: 380 | AM531: 245 | AN531: 270 | AO531: 295 | AP531: 320 | AQ531: 335 | AR531: 355 | AS531: 370 | AT531: 380

Sheet Feuil1 (hidden)
C1: FC44 | D1: FC48 | E1: FC53 | F1: FC58 | G1: FC63 | H1: FC69 | I1: FC+69 | J1: FJ48 | K1: FJ53 | L1: FJ58 | M1: FJ63 | N1: FJ69 | O1: FJ75 | P1: FJ+75 | Q1: FS48 | R1: FS53 | S1: FS58 | T1: FS63 | U1: FS69 | V1: FS75 | W1: FS+75 | X1: C50 | Y1: C56 | Z1: C62 | AA1: C69 | AB1: C77 | AC1: C85 | AD1: C94 | AE1: C+94 | AF1: J56 | AG1: J62 | AH1: J69 | AI1: J77 | AJ1: J85 | AK1: J94 | AL1: J105 | AM1: J+105 | AN1: S56 | AO1: S62 | AP1: S69 | AQ1: S77 | AR1: S85 | AS1: S94 | AT1: S105 | AU1: S+105
B2: DEPARTEMENTAL | C2: 40 | D2: 45 | E2: 50 | F2: 55 | G2: 60 | H2: 65 | I2: 75 | J2: 50 | K2: 55 | L2: 65 | M2: 70 | N2: 75 | O2: 90 | P2: 100 | Q2: 60 | R2: 70 | S2: 80 | T2: 85 | U2: 95 | V2: 100 | W2: 110 | X2: 65 | Y2: 80 | Z2: 100 | AA2: 115 | AB2: 125 | AC2: 135 | AD2: 150 | AE2: 160 | AF2: 95 | AG2: 110 | AH2: 125 | AI2: 140 | AJ2: 155 | AK2: 165 | AL2: 175 | AM2: 185 | AN2: 110 | AO2: 130 | AP2: 145 | AQ2: 160 | AR2: 175 | AS2: 185 | AT2: 195 | AU2: 205
B3: REGIONAL | C3: 50 | D3: 55 | E3: 65 | F3: 70 | G3: 75 | H3: 80 | I3: 90 | J3: 60 | K3: 65 | L3: 75 | M3: 80 | N3: 85 | O3: 100 | P3: 110 | Q3: 70 | R3: 80 | S3: 90 | T3: 95 | U3: 105 | V3: 115 | W3: 125 | X3: 80 | Y3: 95 | Z3: 115 | AA3: 130 | AB3: 145 | AC3: 155 | AD3: 170 | AE3: 180 | AF3: 110 | AG3: 130 | AH3: 145 | AI3: 160 | AJ3: 175 | AK3: 185 | AL3: 195 | AM3: 205 | AN3: 130 | AO3: 150 | AP3: 165 | AQ3: 180 | AR3: 195 | AS3: 205 | AT3: 215 | AU3: 225
B4: INTERREGIONAL | C4: 60 | D4: 65 | E4: 75 | F4: 80 | G4: 85 | H4: 95 | I4: 105 | J4: 75 | K4: 80 | L4: 90 | M4: 95 | N4: 100 | O4: 115 | P4: 120 | Q4: 85 | R4: 95 | S4: 100 | T4: 110 | U4: 120 | V4: 130 | W4: 140 | X4: 95 | Y4: 110 | Z4: 130 | AA4: 150 | AB4: 165 | AC4: 180 | AD4: 190 | AE4: 205 | AF4: 130 | AG4: 150 | AH4: 165 | AI4: 185 | AJ4: 195 | AK4: 205 | AL4: 215 | AM4: 225 | AN4: 145 | AO4: 170 | AP4: 185 | AQ4: 205 | AR4: 220 | AS4: 230 | AT4: 240 | AU4: 250
B5: FEDERAL | C5: 70 | D5: 75 | E5: 85 | F5: 90 | G5: 95 | H5: 105 | I5: 115 | J5: 85 | K5: 95 | L5: 100 | M5: 110 | N5: 120 | O5: 130 | P5: 140 | Q5: 95 | R5: 105 | S5: 115 | T5: 125 | U5: 135 | V5: 145 | W5: 155 | X5: 110 | Y5: 125 | Z5: 145 | AA5: 160 | AB5: 180 | AC5: 195 | AD5: 210 | AE5: 220 | AF5: 145 | AG5: 165 | AH5: 185 | AI5: 205 | AJ5: 220 | AK5: 230 | AL5: 240 | AM5: 250 | AN5: 170 | AO5: 195 | AP5: 215 | AQ5: 235 | AR5: 250 | AS5: 260 | AT5: 270 | AU5: 280
B6: NATIONAL | C6: 80 | D6: 85 | E6: 95 | F6: 100 | G6: 110 | H6: 120 | I6: 130 | J6: 95 | K6: 105 | L6: 110 | M6: 125 | N6: 135 | O6: 145 | P6: 155 | Q6: 110 | R6: 120 | S6: 130 | T6: 140 | U6: 150 | V6: 160 | W6: 170 | X6: 120 | Y6: 140 | Z6: 160 | AA6: 175 | AB6: 195 | AC6: 215 | AD6: 225 | AE6: 235 | AF6: 170 | AG6: 190 | AH6: 215 | AI6: 235 | AJ6: 250 | AK6: 260 | AL6: 270 | AM6: 280 | AN6: 195 | AO6: 220 | AP6: 240 | AQ6: 265 | AR6: 280 | AS6: 290 | AT6: 300 | AU6: 310
B7: INTERNATIONAL B | C7: 90 | D7: 95 | E7: 105 | F7: 115 | G7: 125 | H7: 135 | I7: 145 | J7: 110 | K7: 120 | L7: 130 | M7: 140 | N7: 150 | O7: 160 | P7: 170 | Q7: 125 | R7: 140 | S7: 155 | T7: 165 | U7: 175 | V7: 180 | W7: 190 | X7: 135 | Y7: 155 | Z7: 175 | AA7: 190 | AB7: 210 | AC7: 230 | AD7: 240 | AE7: 250 | AF7: 190 | AG7: 215 | AH7: 240 | AI7: 270 | AJ7: 280 | AK7: 290 | AL7: 305 | AM7: 315 | AN7: 210 | AO7: 240 | AP7: 260 | AQ7: 290 | AR7: 310 | AS7: 320 | AT7: 330 | AU7: 340
B8: INTERNATIONAL A | C8: 100 | D8: 105 | E8: 115 | F8: 125 | G8: 135 | H8: 145 | I8: 155 | J8: 125 | K8: 135 | L8: 145 | M8: 155 | N8: 165 | O8: 175 | P8: 185 | Q8: 140 | R8: 160 | S8: 175 | T8: 185 | U8: 190 | V8: 195 | W8: 210 | X8: 150 | Y8: 175 | Z8: 195 | AA8: 215 | AB8: 235 | AC8: 250 | AD8: 260 | AE8: 270 | AF8: 215 | AG8: 235 | AH8: 260 | AI8: 280 | AJ8: 300 | AK8: 310 | AL8: 320 | AM8: 330 | AN8: 225 | AO8: 255 | AP8: 275 | AQ8: 310 | AR8: 330 | AS8: 340 | AT8: 350 | AU8: 360
B9: OLYMPIQUE | C9: 1000 | D9: 1000 | E9: 1000 | F9: 1000 | G9: 1000 | H9: 1000 | I9: 1000 | J9: 1000 | K9: 1000 | L9: 1000 | M9: 1000 | N9: 1000 | O9: 1000 | P9: 10000 | Q9: 155 | R9: 175 | S9: 190 | T9: 200 | U9: 205 | V9: 210 | W9: 225 | X9: 1000 | Y9: 1000 | Z9: 1000 | AA9: 1000 | AB9: 1000 | AC9: 10000 | AD9: 1000 | AE9: 1000 | AF9: 1000 | AG9: 1000 | AH9: 1000 | AI9: 10000 | AJ9: 1000 | AK9: 1000 | AL9: 1000 | AM9: 10000 | AN9: 240 | AO9: 270 | AP9: 290 | AQ9: 325 | AR9: 345 | AS9: 355 | AT9: 365 | AU9: 375
B10: MINIME | C10: CADET | D10: JUNIOR | E10: SENIOR | G10: MINIME | H10: CADETTE | I10: JUNIOR | J10: SENIOR
A11: 20.01 | B11: NON | C11: C50 | D11: J56 | E11: S56 | F11: 20.01 | G11: NON | H11: FC44 | I11: FJ48 | J11: FS48
A12: 34.01 | B12: NON | C12: C50 | D12: J56 | E12: S56 | F12: 30.01 | G12: NON | H12: FC44 | I12: FJ48 | J12: FS48
A13: 38.01 | B13: NON | C13: C50 | D13: J56 | E13: S56 | F13: 35.01 | G13: NON | H13: FC44 | I13: FJ48 | J13: FS48
A14: 40.01 | B14: NON | C14: C50 | D14: J56 | E14: S56 | F14: 36.01 | G14: NON | H14: FC44 | I14: FJ48 | J14: FS48
A15: 45.01 | B15: NON | C15: C50 | D15: J56 | E15: S56 | F15: 40.01 | G15: NON | H15: FC44 | I15: FJ48 | J15: FS48
A16: 50.01 | B16: NON | C16: C56 | D16: J56 | E16: S56 | F16: 44.01 | G16: NON | H16: FC48 | I16: FJ48 | J16: FS48
A17: 52.05 | B17: NON | C17: C56 | D17: J56 | E17: S56 | F17: 48.01 | G17: NON | H17: FC53 | I17: FJ53 | J17: FS53
A18: 56.01 | B18: NON | C18: C62 | D18: J62 | E18: S62 | F18: 53.01 | G18: NON | H18: FC58 | I18: FJ58 | J18: FS58
A19: 62.01 | B19: NON | C19: C69 | D19: J69 | E19: S69 | F19: 58.01 | G19: NON | H19: FC63 | I19: FJ63 | J19: FS63
A20: 69.01 | B20: NON | C20: C77 | D20: J77 | E20: S77 | F20: 63.01 | G20: NON | H20: FC69 | I20: FJ69 | J20: FS69
A21: 77.01 | B21: NON | C21: C85 | D21: J85 | E21: S85 | F21: 69.01 | G21: NON | H21: FC+69 | I21: FJ75 | J21: FS75
A22: 85.01 | B22: NON | C22: C94 | D22: J94 | E22: S94 | F22: 75.01 | G22: NON | H22: FC+69 | I22: FJ+75 | J22: FS+75
A23: 94.01 | B23: NON | C23: C+94 | D23: J105 | E23: S105 | F23: 110 | G23: NON | H23: FC+69 | I23: FJ+75 | J23: FS+75
A24: 105.01 | B24: NON | C24: C+94 | D24: J+105 | E24: S+105 | F24: 140 | G24: NON | H24: FC+69 | I24: FJ+75 | J24: FS+75
A25: 110 | B25: NON | C25: C+94 | D25: J+105 | E25: S+105
A26: 120 | B26: NON | C26: C+94 | D26: J+105 | E26: S+105
A27: 130 | B27: NON | C27: C+94 | D27: J+105 | E27: S+105
A28: 140 | B28: NON | C28: C+94 | D28: J+105 | E28: S+105
